[Event "Late-Titled-Tuesday-Blitz-March-05-2024"]
[Site "Chess.com"]
[Date "2024.03.05"]
[Round "4"]
[White "NCchamp"]
[Black "Smoking_Crow"]
[Result "0-1"]
[WhiteElo "2337"]
[BlackElo "2619"]
[TimeControl "180+1"]
[EndTime "14:37:28 PST"]
[Termination "Smoking_Crow won by checkmate"]

1. d4 {[%clk 0:03:00.9]} 1... Nf6 {[%clk 0:02:59.2]} 2. Bg5 {[%clk 0:03:00.6]}
2... Ne4 {[%clk 0:02:58.2]} 3. Bf4 {[%clk 0:02:59.5]} 3... c5 {[%clk 0:02:57.7]}
4. f3 {[%clk 0:02:59.6]} 4... Nf6 {[%clk 0:02:54.9]} 5. d5 {[%clk 0:02:49.7]}
5... e6 {[%clk 0:02:54.6]} 6. e4 {[%clk 0:02:48.2]} 6... d6 {[%clk 0:02:51]} 7.
c4 {[%clk 0:02:45.5]} 7... g6 {[%clk 0:02:44.1]} 8. Nc3 {[%clk 0:02:43.8]} 8...
exd5 {[%clk 0:02:40.9]} 9. exd5 {[%clk 0:02:33.2]} 9... Nh5 {[%clk 0:02:36]} 10.
Be3 {[%clk 0:02:27.9]} 10... Bg7 {[%clk 0:02:34.9]} 11. Bd3 {[%clk 0:02:07.4]}
11... O-O {[%clk 0:02:33.1]} 12. Nge2 {[%clk 0:02:04.8]} 12... Re8 {[%clk
0:02:31.8]} 13. Qd2 {[%clk 0:02:05.1]} 13... Nd7 {[%clk 0:02:26.3]} 14. O-O
{[%clk 0:02:02.2]} 14... Ne5 {[%clk 0:02:25]} 15. Bg5 {[%clk 0:01:55.4]} 15...
Qb6 {[%clk 0:02:13.4]} 16. a4 {[%clk 0:01:15.7]} 16... Nxd3 {[%clk 0:02:08.5]}
17. Qxd3 {[%clk 0:01:16.5]} 17... Bf5 {[%clk 0:02:08.1]} 18. Qd2 {[%clk
0:01:15]} 18... Bd4+ {[%clk 0:02:05.4]} 19. Nxd4 {[%clk 0:01:07.2]} 19... cxd4
{[%clk 0:02:04.6]} 20. Nb5 {[%clk 0:01:06.8]} 20... d3+ {[%clk 0:02:04.7]} 21.
Kh1 {[%clk 0:01:06.5]} 21... Re2 {[%clk 0:02:01.5]} 22. Qc3 {[%clk 0:01:04.6]}
22... a6 {[%clk 0:01:54.7]} 23. g4 {[%clk 0:00:58.4]} 23... axb5 {[%clk
0:01:38.3]} 24. gxh5 {[%clk 0:00:57.7]} 24... Bh3 {[%clk 0:01:26.4]} 25. Rg1
{[%clk 0:00:28.8]} 25... Qf2 {[%clk 0:01:23.6]} 26. Be3 {[%clk 0:00:20.6]} 26...
Bg2+ {[%clk 0:01:22.9]} 27. Rxg2 {[%clk 0:00:19.7]} 27... Qxg2# {[%clk
0:01:23.8]} 0-1

[Event "Late-Titled-Tuesday-Blitz-March-05-2024"]
[Site "Chess.com"]
[Date "2024.03.05"]
[Round "4"]
[White "Pachonpower"]
[Black "protectiago"]
[Result "1-0"]
[WhiteElo "2286"]
[BlackElo "2065"]
[TimeControl "180+1"]
[EndTime "14:37:28 PST"]
[Termination "Pachonpower won on time"]

1. e4 {[%clk 0:02:58]} 1... e5 {[%clk 0:02:59.7]} 2. Nf3 {[%clk 0:02:57.6]} 2...
Nc6 {[%clk 0:02:55.9]} 3. Nc3 {[%clk 0:02:57.6]} 3... Nf6 {[%clk 0:02:55.2]} 4.
Bc4 {[%clk 0:02:56.3]} 4... Bc5 {[%clk 0:02:54.8]} 5. d3 {[%clk 0:02:55.5]} 5...
h6 {[%clk 0:02:52.9]} 6. O-O {[%clk 0:02:49]} 6... O-O {[%clk 0:02:51.6]} 7. h3
{[%clk 0:02:49.5]} 7... a6 {[%clk 0:02:49]} 8. Re1 {[%clk 0:02:49.7]} 8... Re8
{[%clk 0:02:47.1]} 9. Nh4 {[%clk 0:02:48.5]} 9... b5 {[%clk 0:02:43.5]} 10. Bb3
{[%clk 0:02:46.8]} 10... Na5 {[%clk 0:02:36.7]} 11. Nf5 {[%clk 0:02:42.3]} 11...
Nxb3 {[%clk 0:02:35.6]} 12. axb3 {[%clk 0:02:41.9]} 12... d5 {[%clk 0:02:33.7]}
13. Qf3 {[%clk 0:02:40.8]} 13... dxe4 {[%clk 0:01:38.8]} 14. Nxe4 {[%clk
0:02:36.5]} 14... Nxe4 {[%clk 0:01:18]} 15. Rxe4 {[%clk 0:02:34.5]} 15... Bb7
{[%clk 0:01:16.1]} 16. Bxh6 {[%clk 0:02:31.8]} 16... Bxe4 {[%clk 0:01:12.4]} 17.
dxe4 {[%clk 0:02:27.8]} 17... gxh6 {[%clk 0:00:49.9]} 18. Nxh6+ {[%clk 0:02:26]}
18... Kg7 {[%clk 0:00:37.8]} 19. Nf5+ {[%clk 0:02:19.4]} 19... Kf8 {[%clk
0:00:34.4]} 20. Qh5 {[%clk 0:02:08.5]} 20... Qf6 {[%clk 0:00:25.1]} 21. g4
{[%clk 0:02:08.7]} 21... Red8 {[%clk 0:00:15.6]} 22. g5 {[%clk 0:02:07.8]} 22...
Bxf2+ {[%clk 0:00:09.1]} 23. Kxf2 {[%clk 0:02:06.6]} 23... Qb6+ {[%clk
0:00:09.3]} 24. Kf1 {[%clk 0:02:03.6]} 24... Ke8 {[%clk 0:00:09]} 25. Qh8+
{[%clk 0:01:57.6]} 25... Kd7 {[%clk 0:00:08.5]} 26. Rd1+ {[%clk 0:01:57.9]}
26... Kc6 {[%clk 0:00:07.7]} 27. Rxd8 {[%clk 0:01:56.8]} 27... Rxd8 {[%clk
0:00:04.9]} 28. Qxd8 {[%clk 0:01:57.7]} 28... Qa5 {[%clk 0:00:02.4]} 29. Ne7+
{[%clk 0:01:51.2]} 29... Kb7 {[%clk 0:00:01.6]} 30. Qd5+ {[%clk 0:01:51.1]}
30... Ka7 {[%clk 0:00:01.1]} 31. Nc6+ {[%clk 0:01:50.7]} 1-0

[Event "Late-Titled-Tuesday-Blitz-March-05-2024"]
[Site "Chess.com"]
[Date "2024.03.05"]
[Round "4"]
[White "jk13"]
[Black "dimoni64"]
[Result "1-0"]
[WhiteElo "2647"]
[BlackElo "1965"]
[TimeControl "180+1"]
[EndTime "14:37:31 PST"]
[Termination "jk13 won by checkmate"]

1. h4 {[%clk 0:03:00.9]} 1... c5 {[%clk 0:02:57]} 2. e3 {[%clk 0:02:57.1]} 2...
d5 {[%clk 0:02:57]} 3. d4 {[%clk 0:02:57]} 3... Nc6 {[%clk 0:02:56.6]} 4. c3
{[%clk 0:02:52.9]} 4... Nf6 {[%clk 0:02:54.6]} 5. Nd2 {[%clk 0:02:52]} 5... Bg4
{[%clk 0:02:49.3]} 6. Qb3 {[%clk 0:02:50.4]} 6... Qb6 {[%clk 0:02:32.2]} 7. f3
{[%clk 0:02:48.1]} 7... Be6 {[%clk 0:02:29.9]} 8. Ne2 {[%clk 0:02:47.7]} 8... c4
{[%clk 0:02:27.6]} 9. Qc2 {[%clk 0:02:44.1]} 9... g6 {[%clk 0:02:25.6]} 10. e4
{[%clk 0:02:43.5]} 10... Bg7 {[%clk 0:02:18.1]} 11. Nf4 {[%clk 0:02:43.2]} 11...
O-O {[%clk 0:01:45.6]} 12. exd5 {[%clk 0:02:42.6]} 12... Nxd5 {[%clk 0:01:43.5]}
13. Nxc4 {[%clk 0:02:42.4]} 13... Qc7 {[%clk 0:01:41.7]} 14. Nxe6 {[%clk
0:02:34.6]} 14... fxe6 {[%clk 0:01:42.6]} 15. h5 {[%clk 0:02:34.9]} 15... b5
{[%clk 0:01:33.3]} 16. Ne3 {[%clk 0:02:31.7]} 16... Nxd4 {[%clk 0:01:26.1]} 17.
cxd4 {[%clk 0:02:29]} 17... Qxc2 {[%clk 0:01:21.2]} 18. Nxc2 {[%clk 0:02:28.7]}
18... Rac8 {[%clk 0:01:17.6]} 19. Bd3 {[%clk 0:02:23.1]} 19... b4 {[%clk
0:01:15.4]} 20. hxg6 {[%clk 0:02:19.8]} 20... hxg6 {[%clk 0:01:13.1]} 21. Bxg6
{[%clk 0:02:20.7]} 21... Rf6 {[%clk 0:01:01]} 22. Be4 {[%clk 0:02:20.5]} 22...
Nf4 {[%clk 0:00:53.7]} 23. Bxf4 {[%clk 0:02:14.1]} 23... Rxf4 {[%clk 0:00:54.6]}
24. Kd2 {[%clk 0:02:14.3]} 24... e5 {[%clk 0:00:49]} 25. d5 {[%clk 0:02:13.1]}
25... Rf6 {[%clk 0:00:45.7]} 26. Nxb4 {[%clk 0:02:10.9]} 26... Rb6 {[%clk
0:00:40.1]} 27. Nd3 {[%clk 0:02:10.7]} 27... Bh6+ {[%clk 0:00:36.8]} 28. Ke2
{[%clk 0:02:10.9]} 28... Rc2+ {[%clk 0:00:35.4]} 29. Kf1 {[%clk 0:02:11.4]}
29... Be3 {[%clk 0:00:26.8]} 30. Re1 {[%clk 0:01:58.5]} 30... Bd4 {[%clk
0:00:26.4]} 31. Re2 {[%clk 0:01:59]} 31... Rxe2 {[%clk 0:00:21.6]} 32. Kxe2
{[%clk 0:01:58.9]} 32... Bxb2 {[%clk 0:00:22.2]} 33. Rb1 {[%clk 0:01:57.4]}
33... Bd4 {[%clk 0:00:21.4]} 34. Rxb6 {[%clk 0:01:58.3]} 34... axb6 {[%clk
0:00:21.7]} 35. Nb4 {[%clk 0:01:56.5]} 35... Kf7 {[%clk 0:00:20.7]} 36. Nc6
{[%clk 0:01:57.1]} 36... Kf6 {[%clk 0:00:17.8]} 37. Nxd4 {[%clk 0:01:56.5]}
37... exd4 {[%clk 0:00:18.7]} 38. Kd3 {[%clk 0:01:57.1]} 38... b5 {[%clk
0:00:18.6]} 39. Kxd4 {[%clk 0:01:56.9]} 39... b4 {[%clk 0:00:19.5]} 40. Kc4
{[%clk 0:01:56.8]} 40... b3 {[%clk 0:00:20.4]} 41. axb3 {[%clk 0:01:56.8]} 41...
e6 {[%clk 0:00:21.2]} 42. b4 {[%clk 0:01:56.9]} 42... exd5+ {[%clk 0:00:21.9]}
43. Kxd5 {[%clk 0:01:57.7]} 43... Ke7 {[%clk 0:00:21.7]} 44. b5 {[%clk
0:01:58.6]} 44... Kd8 {[%clk 0:00:22.1]} 45. Kc5 {[%clk 0:01:59.5]} 45... Kc8
{[%clk 0:00:22.7]} 46. b6 {[%clk 0:02:00.4]} 46... Kb8 {[%clk 0:00:23.3]} 47.
Bc6 {[%clk 0:02:00.9]} 47... Kc8 {[%clk 0:00:24.2]} 48. f4 {[%clk 0:02:01.6]}
48... Kb8 {[%clk 0:00:25.1]} 49. f5 {[%clk 0:02:02.5]} 49... Kc8 {[%clk
0:00:25.9]} 50. f6 {[%clk 0:02:03.1]} 50... Kb8 {[%clk 0:00:26.8]} 51. Kd6
{[%clk 0:02:01.9]} 51... Kc8 {[%clk 0:00:27.7]} 52. f7 {[%clk 0:02:02.2]} 52...
Kb8 {[%clk 0:00:28.6]} 53. f8=Q# {[%clk 0:02:02.8]} 1-0

[Event "Late-Titled-Tuesday-Blitz-March-05-2024"]
[Site "Chess.com"]
[Date "2024.03.05"]
[Round "4"]
[White "Bkmzzzzz"]
[Black "xasid81"]
[Result "0-1"]
[WhiteElo "2410"]
[BlackElo "2556"]
[TimeControl "180+1"]
[EndTime "14:37:33 PST"]
[Termination "xasid81 won by resignation"]

1. e4 {[%clk 0:03:00.9]} 1... a6 {[%clk 0:02:55.9]} 2. d4 {[%clk 0:02:57.2]}
2... e6 {[%clk 0:02:56.4]} 3. Nf3 {[%clk 0:02:57]} 3... d5 {[%clk 0:02:57]} 4.
exd5 {[%clk 0:02:57]} 4... exd5 {[%clk 0:02:57.6]} 5. Bd3 {[%clk 0:02:57.3]}
5... Bd6 {[%clk 0:02:56.2]} 6. O-O {[%clk 0:02:57.3]} 6... Ne7 {[%clk
0:02:56.5]} 7. c4 {[%clk 0:02:55]} 7... dxc4 {[%clk 0:02:55.9]} 8. Bxc4 {[%clk
0:02:55.9]} 8... O-O {[%clk 0:02:55.5]} 9. h3 {[%clk 0:02:52.8]} 9... b5 {[%clk
0:02:53.8]} 10. Bb3 {[%clk 0:02:50.6]} 10... Bb7 {[%clk 0:02:53.5]} 11. Nc3
{[%clk 0:02:44.4]} 11... Nd7 {[%clk 0:02:52.3]} 12. Bg5 {[%clk 0:02:42.7]} 12...
h6 {[%clk 0:02:50.4]} 13. Bh4 {[%clk 0:02:42.6]} 13... Qc8 {[%clk 0:02:42.1]}
14. Qd3 {[%clk 0:02:37.3]} 14... Nb6 {[%clk 0:02:31.8]} 15. Rfe1 {[%clk
0:02:31.3]} 15... Nf5 {[%clk 0:02:26.8]} 16. Bc2 {[%clk 0:02:21]} 16... g6
{[%clk 0:02:26.6]} 17. Bf6 {[%clk 0:02:18.4]} 17... Re8 {[%clk 0:02:24.2]} 18.
Be5 {[%clk 0:01:42.1]} 18... Nc4 {[%clk 0:02:13.7]} 19. b3 {[%clk 0:01:30.8]}
19... Nxe5 {[%clk 0:02:03.9]} 20. Nxe5 {[%clk 0:01:27.2]} 20... c5 {[%clk
0:01:53]} 21. dxc5 {[%clk 0:01:14.6]} 21... Bxe5 {[%clk 0:01:50.3]} 22. b4
{[%clk 0:00:58.9]} 22... Qc6 {[%clk 0:01:45.4]} 23. f3 {[%clk 0:00:37.1]} 23...
Bd4+ {[%clk 0:01:37]} 24. Kh1 {[%clk 0:00:27.5]} 24... Ng3+ {[%clk 0:01:33.3]}
25. Kh2 {[%clk 0:00:27.6]} 25... Nf5 {[%clk 0:01:18.7]} 26. Ne4 {[%clk 0:00:19]}
0-1

[Event "Late-Titled-Tuesday-Blitz-March-05-2024"]
[Site "Chess.com"]
[Date "2024.03.05"]
[Round "4"]
[White "Bala-Afiada"]
[Black "cthulhuuu"]
[Result "0-1"]
[WhiteElo "1874"]
[BlackElo "2437"]
[TimeControl "180+1"]
[EndTime "14:37:33 PST"]
[Termination "cthulhuuu won by resignation"]

1. d4 {[%clk 0:02:56.2]} 1... Nf6 {[%clk 0:02:59.3]} 2. c4 {[%clk 0:02:56.1]}
2... e5 {[%clk 0:02:58.8]} 3. dxe5 {[%clk 0:02:56]} 3... Ng4 {[%clk 0:02:58.8]}
4. Nf3 {[%clk 0:02:56.4]} 4... Bc5 {[%clk 0:02:58.4]} 5. e3 {[%clk 0:02:57]}
5... Nc6 {[%clk 0:02:58.8]} 6. Nc3 {[%clk 0:02:57.1]} 6... O-O {[%clk
0:02:58.6]} 7. a3 {[%clk 0:02:57.4]} 7... a5 {[%clk 0:02:57.8]} 8. Be2 {[%clk
0:02:57.4]} 8... Re8 {[%clk 0:02:57.8]} 9. O-O {[%clk 0:02:54.6]} 9... Ncxe5
{[%clk 0:02:58]} 10. h3 {[%clk 0:02:49.9]} 10... Nxf3+ {[%clk 0:02:57.5]} 11.
Bxf3 {[%clk 0:02:50.8]} 11... Ne5 {[%clk 0:02:57.6]} 12. Be2 {[%clk 0:02:45.5]}
12... Ra6 {[%clk 0:02:58]} 13. Ne4 {[%clk 0:02:44.5]} 13... Ba7 {[%clk
0:02:56.5]} 14. Ng3 {[%clk 0:02:33]} 14... Rg6 {[%clk 0:02:53.2]} 15. b4 {[%clk
0:02:15.4]} 15... d6 {[%clk 0:02:50.9]} 16. Bh5 {[%clk 0:01:57.8]} 16... Rh6
{[%clk 0:02:45.4]} 17. e4 {[%clk 0:01:51.4]} 17... Qh4 {[%clk 0:02:16.1]} 18.
Bxh6 {[%clk 0:01:02.8]} 18... Qxg3 {[%clk 0:02:15.4]} 19. Be3 {[%clk 0:00:57.7]}
19... Bxe3 {[%clk 0:02:02.6]} 20. fxe3 {[%clk 0:00:55.9]} 20... Bxh3 {[%clk
0:01:52.3]} 21. Qe2 {[%clk 0:00:39.7]} 21... Bg4 {[%clk 0:01:51.8]} 22. Bxg4
{[%clk 0:00:39.1]} 22... Nxg4 {[%clk 0:01:51]} 23. Qxg4 {[%clk 0:00:10]} 23...
Qxg4 {[%clk 0:01:51.9]} 24. Rf4 {[%clk 0:00:10]} 24... Qe2 {[%clk 0:01:49.6]}
25. Raf1 {[%clk 0:00:09]} 25... Qxe3+ {[%clk 0:01:49.2]} 26. Kh1 {[%clk
0:00:09.7]} 26... f6 {[%clk 0:01:49.4]} 27. c5 {[%clk 0:00:07.6]} 27... Rxe4
{[%clk 0:01:46.5]} 28. Rxe4 {[%clk 0:00:07]} 28... Qxe4 {[%clk 0:01:46.3]} 29.
cxd6 {[%clk 0:00:07.5]} 29... cxd6 {[%clk 0:01:46]} 30. bxa5 {[%clk 0:00:07.8]}
30... d5 {[%clk 0:01:45.6]} 31. Rf3 {[%clk 0:00:06.4]} 31... d4 {[%clk
0:01:45.2]} 0-1

[Event "Late-Titled-Tuesday-Blitz-March-05-2024"]
[Site "Chess.com"]
[Date "2024.03.05"]
[Round "4"]
[White "NtcPou"]
[Black "SocoLoco"]
[Result "1-0"]
[WhiteElo "2013"]
[BlackElo "2218"]
[TimeControl "180+1"]
[EndTime "14:37:39 PST"]
[Termination "NtcPou won by resignation"]

1. e4 {[%clk 0:03:00.9]} 1... c5 {[%clk 0:02:57.9]} 2. Nf3 {[%clk 0:03:00.5]}
2... e6 {[%clk 0:02:57.9]} 3. g3 {[%clk 0:03:00.2]} 3... d5 {[%clk 0:02:56.8]}
4. exd5 {[%clk 0:02:59.9]} 4... Qxd5 {[%clk 0:02:57.7]} 5. d4 {[%clk 0:02:58.6]}
5... cxd4 {[%clk 0:02:56.1]} 6. Bg2 {[%clk 0:02:57.9]} 6... Nf6 {[%clk
0:02:52.9]} 7. O-O {[%clk 0:02:56.8]} 7... Be7 {[%clk 0:02:46.5]} 8. Nbd2 {[%clk
0:02:57.1]} 8... O-O {[%clk 0:02:43.8]} 9. Nb3 {[%clk 0:02:56.3]} 9... Nc6
{[%clk 0:02:35.2]} 10. Nfxd4 {[%clk 0:02:53.1]} 10... Qd8 {[%clk 0:02:10.2]} 11.
Nxc6 {[%clk 0:02:53.1]} 11... bxc6 {[%clk 0:02:10.2]} 12. Bf4 {[%clk 0:02:53.2]}
12... Qb6 {[%clk 0:02:02.7]} 13. Be3 {[%clk 0:02:47.3]} 13... Qc7 {[%clk
0:01:58.3]} 14. c4 {[%clk 0:02:25.3]} 14... a5 {[%clk 0:01:54.3]} 15. Nd4 {[%clk
0:02:21.5]} 15... Ra6 {[%clk 0:01:38.1]} 16. Qa4 {[%clk 0:02:20]} 16... Bb7
{[%clk 0:01:21.4]} 17. Rac1 {[%clk 0:02:12.4]} 17... Nd7 {[%clk 0:01:00.8]} 18.
Rfd1 {[%clk 0:01:50.1]} 18... Nc5 {[%clk 0:00:59.6]} 19. Qc2 {[%clk 0:01:50.5]}
19... Rd8 {[%clk 0:00:57.5]} 20. a3 {[%clk 0:01:47]} 20... Raa8 {[%clk
0:00:57.2]} 21. b4 {[%clk 0:01:42.9]} 21... axb4 {[%clk 0:00:57]} 22. axb4
{[%clk 0:01:43.8]} 22... Na6 {[%clk 0:00:55.7]} 23. b5 {[%clk 0:01:42]} 23...
cxb5 {[%clk 0:00:54.7]} 24. Nxb5 {[%clk 0:01:42.9]} 24... Qb6 {[%clk 0:00:53.5]}
25. Bxb6 {[%clk 0:01:42.5]} 25... Rdb8 {[%clk 0:00:30.6]} 26. Bxb7 {[%clk
0:01:32.1]} 26... Rxb7 {[%clk 0:00:31.5]} 27. Be3 {[%clk 0:01:29.9]} 27... Rc8
{[%clk 0:00:30.3]} 28. Qa4 {[%clk 0:01:27.2]} 28... Nc5 {[%clk 0:00:28.5]} 29.
Bxc5 {[%clk 0:01:27.4]} 29... Bxc5 {[%clk 0:00:28.8]} 30. Nd6 {[%clk 0:01:24.6]}
30... Ra7 {[%clk 0:00:26.3]} 31. Qxa7 {[%clk 0:01:20.2]} 1-0

[Event "Late-Titled-Tuesday-Blitz-March-05-2024"]
[Site "Chess.com"]
[Date "2024.03.05"]
[Round "4"]
[White "MagnusCarlsen"]
[Black "baag"]
[Result "1-0"]
[WhiteElo "3258"]
[BlackElo "2849"]
[TimeControl "180+1"]
[EndTime "14:37:56 PST"]
[Termination "MagnusCarlsen won on time"]

1. d4 {[%clk 0:03:00.9]} 1... Nf6 {[%clk 0:02:59.7]} 2. Bg5 {[%clk 0:02:44.3]}
2... d5 {[%clk 0:02:57.4]} 3. Nc3 {[%clk 0:02:43.2]} 3... Nbd7 {[%clk 0:02:50]}
4. e3 {[%clk 0:02:41.1]} 4... a6 {[%clk 0:02:49.4]} 5. f4 {[%clk 0:02:38.8]}
5... h6 {[%clk 0:02:40.1]} 6. Bh4 {[%clk 0:02:38.6]} 6... c5 {[%clk 0:02:40.8]}
7. Nf3 {[%clk 0:02:37.8]} 7... Qb6 {[%clk 0:02:21.9]} 8. Rb1 {[%clk 0:02:33.5]}
8... e6 {[%clk 0:02:21.1]} 9. a3 {[%clk 0:02:33.2]} 9... Ne4 {[%clk 0:02:12.3]}
10. Nxe4 {[%clk 0:02:25.9]} 10... dxe4 {[%clk 0:02:13.2]} 11. Ne5 {[%clk
0:02:26.1]} 11... cxd4 {[%clk 0:02:09.2]} 12. exd4 {[%clk 0:02:13.8]} 12... g5
{[%clk 0:01:18.2]} 13. Bg3 {[%clk 0:02:13.5]} 13... Nf6 {[%clk 0:00:55.5]} 14.
c4 {[%clk 0:02:11.9]} 14... Qa5+ {[%clk 0:00:42.7]} 15. Kf2 {[%clk 0:02:08]}
15... Bd6 {[%clk 0:00:23.8]} 16. Be2 {[%clk 0:02:06.4]} 16... Nd7 {[%clk
0:00:18.8]} 17. b4 {[%clk 0:01:55.2]} 17... Qd8 {[%clk 0:00:16]} 18. c5 {[%clk
0:01:49.5]} 18... Bc7 {[%clk 0:00:15.4]} 19. Rf1 {[%clk 0:01:47.5]} 19... gxf4
{[%clk 0:00:14.2]} 20. Bxf4 {[%clk 0:01:47.4]} 20... Nxe5 {[%clk 0:00:10.2]} 21.
dxe5 {[%clk 0:01:44.7]} 21... Qxd1 {[%clk 0:00:07.6]} 22. Rbxd1 {[%clk
0:01:39.5]} 22... Bd7 {[%clk 0:00:08.1]} 23. Ke3 {[%clk 0:01:37.2]} 23... Bc6
{[%clk 0:00:08.6]} 24. Bh5 {[%clk 0:01:34.4]} 24... Rd8 {[%clk 0:00:05.1]} 25.
Rd6 {[%clk 0:01:33.1]} 25... Bxd6 {[%clk 0:00:03.2]} 26. exd6 {[%clk 0:01:34]}
26... Rh7 {[%clk 0:00:03.7]} 27. Be5 {[%clk 0:01:31.7]} 27... Kf8 {[%clk
0:00:04.3]} 28. Bg6 {[%clk 0:01:29.1]} 28... Rg7 {[%clk 0:00:03.4]} 29. Bxg7+
{[%clk 0:01:27.6]} 29... Kxg7 {[%clk 0:00:04.3]} 30. Bxe4 {[%clk 0:01:27.9]}
30... Bxe4 {[%clk 0:00:02.3]} 31. Kxe4 {[%clk 0:01:28.8]} 31... f6 {[%clk
0:00:03]} 32. a4 {[%clk 0:01:24]} 32... Kf7 {[%clk 0:00:03]} 33. b5 {[%clk
0:01:24.5]} 33... axb5 {[%clk 0:00:03.3]} 34. axb5 {[%clk 0:01:25.4]} 34... b6
{[%clk 0:00:01.4]} 35. c6 {[%clk 0:01:25.6]} 1-0

[Event "Late-Titled-Tuesday-Blitz-March-05-2024"]
[Site "Chess.com"]
[Date "2024.03.05"]
[Round "4"]
[White "JaackCamel"]
[Black "GrotBchess"]
[Result "0-1"]
[WhiteElo "2199"]
[BlackElo "2385"]
[TimeControl "180+1"]
[EndTime "14:37:58 PST"]
[Termination "GrotBchess won by checkmate"]

1. d4 {[%clk 0:03:00.9]} 1... d6 {[%clk 0:02:56.3]} 2. Nf3 {[%clk 0:03:00.1]}
2... Nf6 {[%clk 0:02:55.5]} 3. c4 {[%clk 0:02:59.2]} 3... c6 {[%clk 0:02:55.2]}
4. Nc3 {[%clk 0:02:58.6]} 4... Nbd7 {[%clk 0:02:54.9]} 5. e4 {[%clk 0:02:58.6]}
5... e5 {[%clk 0:02:55.2]} 6. Be2 {[%clk 0:02:56.8]} 6... Qa5 {[%clk 0:02:54.8]}
7. Bd2 {[%clk 0:02:53.3]} 7... Qc7 {[%clk 0:02:52.4]} 8. d5 {[%clk 0:02:49.2]}
8... Nc5 {[%clk 0:02:51.6]} 9. Qc2 {[%clk 0:02:39.4]} 9... a5 {[%clk 0:02:50.6]}
10. O-O {[%clk 0:02:37.2]} 10... Bg4 {[%clk 0:02:49.9]} 11. h3 {[%clk
0:02:34.8]} 11... Bxf3 {[%clk 0:02:49.5]} 12. Bxf3 {[%clk 0:02:34.5]} 12... Be7
{[%clk 0:02:50]} 13. b3 {[%clk 0:02:29.6]} 13... O-O {[%clk 0:02:49.4]} 14. a3
{[%clk 0:02:28.7]} 14... Rfb8 {[%clk 0:02:45.8]} 15. b4 {[%clk 0:02:28.2]} 15...
Ncd7 {[%clk 0:02:45.7]} 16. Rab1 {[%clk 0:02:25.9]} 16... axb4 {[%clk
0:02:42.4]} 17. axb4 {[%clk 0:02:25.4]} 17... Ra3 {[%clk 0:02:43]} 18. Qb2
{[%clk 0:02:21]} 18... Rba8 {[%clk 0:02:42.1]} 19. Ra1 {[%clk 0:02:20]} 19...
Rxa1 {[%clk 0:02:41.2]} 20. Rxa1 {[%clk 0:02:19.6]} 20... Rxa1+ {[%clk
0:02:38.8]} 21. Qxa1 {[%clk 0:02:19.4]} 21... h6 {[%clk 0:02:39.4]} 22. Be3
{[%clk 0:02:06.3]} 22... cxd5 {[%clk 0:02:38.7]} 23. cxd5 {[%clk 0:02:02.7]}
23... Nb6 {[%clk 0:02:38.5]} 24. Nb5 {[%clk 0:01:52.3]} 24... Qc4 {[%clk
0:02:32.6]} 25. Qa5 {[%clk 0:01:44.9]} 25... Nbd7 {[%clk 0:02:27.2]} 26. Qa8+
{[%clk 0:01:26.8]} 26... Kh7 {[%clk 0:02:26.9]} 27. Qxb7 {[%clk 0:01:26.5]}
27... Qxb4 {[%clk 0:02:26.5]} 28. Qc6 {[%clk 0:01:17.8]} 28... Nf8 {[%clk
0:02:15.3]} 29. Kh2 {[%clk 0:00:58.7]} 29... Ng6 {[%clk 0:02:12.9]} 30. Nc3
{[%clk 0:00:51.8]} 30... Nh4 {[%clk 0:02:08.9]} 31. Bd1 {[%clk 0:00:39.6]} 31...
Ng6 {[%clk 0:02:03.8]} 32. f3 {[%clk 0:00:38.8]} 32... Qb2 {[%clk 0:01:58.5]}
33. Be2 {[%clk 0:00:32.5]} 33... Nh5 {[%clk 0:01:53.7]} 34. Bb5 {[%clk
0:00:25.7]} 34... Nhf4 {[%clk 0:01:51.5]} 35. Bxf4 {[%clk 0:00:25.8]} 35... Nxf4
{[%clk 0:01:52.3]} 36. Bf1 {[%clk 0:00:24.6]} 36... Qc1 {[%clk 0:01:45.5]} 37.
Qc4 {[%clk 0:00:20.3]} 37... Bh4 {[%clk 0:01:40.9]} 38. Nb5 {[%clk 0:00:20.1]}
38... Qe1 {[%clk 0:01:29.8]} 39. Nxd6 {[%clk 0:00:18.8]} 39... Bg3+ {[%clk
0:01:29]} 40. Kg1 {[%clk 0:00:17.5]} 40... Qf2+ {[%clk 0:01:28.8]} 41. Kh1
{[%clk 0:00:17.5]} 41... Nxh3 {[%clk 0:01:28.1]} 42. Nxf7 {[%clk 0:00:15.7]}
42... Qg1# {[%clk 0:01:27.6]} 0-1

[Event "Late-Titled-Tuesday-Blitz-March-05-2024"]
[Site "Chess.com"]
[Date "2024.03.05"]
[Round "4"]
[White "kalxandria"]
[Black "Ducke13"]
[Result "1-0"]
[WhiteElo "2191"]
[BlackElo "2385"]
[TimeControl "180+1"]
[EndTime "14:37:59 PST"]
[Termination "kalxandria won by resignation"]

1. e4 {[%clk 0:03:00.9]} 1... c5 {[%clk 0:02:57.4]} 2. Nf3 {[%clk 0:02:59.8]}
2... d6 {[%clk 0:02:57.2]} 3. d4 {[%clk 0:02:59.3]} 3... cxd4 {[%clk 0:02:58.1]}
4. Nxd4 {[%clk 0:02:59]} 4... Nf6 {[%clk 0:02:58.8]} 5. Nc3 {[%clk 0:02:58.7]}
5... a6 {[%clk 0:02:58.9]} 6. Bc4 {[%clk 0:02:57.7]} 6... e6 {[%clk 0:02:58.5]}
7. a4 {[%clk 0:02:56.4]} 7... Be7 {[%clk 0:02:52.5]} 8. Bg5 {[%clk 0:02:54]}
8... h6 {[%clk 0:02:49.7]} 9. Be3 {[%clk 0:02:50.9]} 9... O-O {[%clk 0:02:48.6]}
10. f3 {[%clk 0:02:50]} 10... Qc7 {[%clk 0:02:46.8]} 11. Ba2 {[%clk 0:02:48.3]}
11... Nc6 {[%clk 0:02:46.3]} 12. Qd2 {[%clk 0:02:46.9]} 12... Nxd4 {[%clk
0:02:46]} 13. Bxd4 {[%clk 0:02:45.9]} 13... Bd7 {[%clk 0:02:46.4]} 14. O-O
{[%clk 0:02:44.2]} 14... Rac8 {[%clk 0:02:45.2]} 15. Kh1 {[%clk 0:02:42.7]}
15... b5 {[%clk 0:02:38.4]} 16. axb5 {[%clk 0:02:36.5]} 16... axb5 {[%clk
0:02:39.3]} 17. Bb3 {[%clk 0:02:28.9]} 17... b4 {[%clk 0:02:33.4]} 18. Na4
{[%clk 0:02:21.2]} 18... d5 {[%clk 0:02:32.6]} 19. Nb6 {[%clk 0:02:17.9]} 19...
dxe4 {[%clk 0:02:19.9]} 20. Bxf6 {[%clk 0:02:01.3]} 20... Bxf6 {[%clk
0:02:16.3]} 21. Nxd7 {[%clk 0:01:58.5]} 21... Bxb2 {[%clk 0:02:09.4]} 22. Nxf8
{[%clk 0:01:48.2]} 22... exf3 {[%clk 0:02:09.3]} 23. Nxe6 {[%clk 0:01:38.5]}
23... fxg2+ {[%clk 0:02:08.8]} 24. Qxg2 {[%clk 0:01:37.6]} 24... Qb6 {[%clk
0:01:09.8]} 25. Ra8 {[%clk 0:01:21.9]} 25... Rb8 {[%clk 0:00:32.8]} 26. Rxb8+
{[%clk 0:01:14.5]} 26... Qxb8 {[%clk 0:00:33.7]} 27. Nxg7 {[%clk 0:01:00.8]}
27... Bxg7 {[%clk 0:00:31.3]} 28. Rxf7 {[%clk 0:00:58]} 28... Qe5 {[%clk
0:00:29.8]} 29. Rf5+ {[%clk 0:00:47.3]} 1-0